bitfinex-derivatives/quotes_BNBF0:USTF0_20241230
["timestamp","ask_amount","ask_price","bid_price","bid_amount"]
[1735543111317,0.28600028,699.3,698.2,1.06851593]
[1735543112618,0.28600028,699.3,698.16,0.28646728]
[1735543112619,0.28600028,699.3,698.4,1.06851593]
[1735543113312,0.26341498,699.29,698.4,1.06851593]
[1735543113918,0.26341498,699.29,698.29,1.06851593]
[1735543114612,0.28600846,699.28,698.29,1.06851593]
[1735543114920,0.28600846,699.28,698.16,0.28646728]
[1735543114921,0.28600846,699.28,698.27,1.06851593]
[1735543115819,0.28600846,699.28,698.3,1.06851593]
[1735543117119,0.28600846,699.28,698.32,1.06851593]
[1735543118221,0.28600846,699.28,698.24,1.06851593]
[1735543119318,0.28600846,699.28,698.16,0.28646728]
[1735543119319,0.28600846,699.28,698.26,1.06851593]
[1735543121422,0.28600846,699.28,698.27,1.06851593]
[1735543122623,0.28600846,699.28,698.33,1.06851593]
[1735543123724,0.28600846,699.28,698.35,1.06851593]
[1735543124922,0.28600846,699.28,698.33,1.06851593]
[1735543126424,0.28600846,699.28,698.16,0.28646728]
[1735543126425,0.28600846,699.28,698.34,1.06851593]
[1735543127223,0.28600846,699.28,698.36,1.06851593]
[1735543128224,0.28600846,699.28,698.38,1.06851593]
[1735543129628,0.28600846,699.28,698.28,1.06851593]
[1735543130724,0.28600846,699.28,698.27,1.06851593]
[1735543132229,0.28600846,699.28,698.25,1.06851593]
[1735543133432,0.28600846,699.28,698.23,1.06851593]
[1735543134529,0.28600846,699.28,698.24,1.06851593]
[1735543136530,0.28600846,699.28,698.27,1.06851593]
[1735543137635,0.28600846,699.28,698.23,1.06851593]
[1735543138631,0.28600846,699.28,698.16,0.28646728]
[1735543138632,0.28600846,699.28,698.26,1.06851593]
[1735543139533,0.28600846,699.28,698.28,1.06851593]
[1735543140637,0.28600846,699.28,698.16,0.28646728]
[1735543141136,0.28600846,699.28,698.07,1.06851593]
[1735543142036,0.28600846,699.28,698.03,1.06851593]
[1735543143336,0.28600846,699.28,698.01,1.06851593]
[1735543144237,0.28600846,699.28,698.0,1.06851593]
[1735543145340,0.28600846,699.28,698.02,1.06851593]
[1735543146742,0.28600846,699.28,697.13,2.18155337]
[1735543146743,0.28600846,699.28,698.0,1.06851593]
[1735543149240,0.28600846,699.28,697.55,3.49907452]
[1735543149241,0.28600846,699.28,698.01,1.06851593]
[1735543150240,0.28600846,699.28,698.21,1.06851593]
[1735543151640,0.28600846,699.28,698.22,1.06851593]
[1735543153543,0.28600846,699.28,698.25,1.06851593]
[1735543154847,0.28600846,699.28,698.26,1.06851593]
[1735543156144,0.28600846,699.28,698.01,1.06851593]
[1735543156145,0.28600846,699.28,698.25,1.06851593]
[1735543156643,0.26345246,699.27,698.25,1.06851593]
[1735543156844,0.28600846,699.28,698.25,1.06851593]
[1735543157044,0.26345218,699.27,698.25,1.06851593]
[1735543157245,0.26345218,699.27,698.18,1.06851593]
[1735543157440,0.28600846,699.28,698.18,1.06851593]
[1735543157645,0.26345282,699.27,698.18,1.06851593]
[1735543158046,0.28600846,699.28,698.18,1.06851593]
[1735543158247,0.28600846,699.28,698.14,1.06851593]
[1735543159044,0.26345173,699.27,698.17,1.06851593]
[1735543159850,0.28601664,699.26,698.17,1.06851593]
[1735543160050,0.28601664,699.26,698.14,1.06851593]
[1735543161349,0.28601664,699.26,698.1,1.06851593]
[1735543161947,0.28601664,699.26,698.04,1.06851593]
[1735543164052,0.28601664,699.26,698.01,1.06851593]
[1735543166253,0.28601664,699.26,698.03,1.06851593]
[1735543169654,0.28601664,699.26,697.67,0.68319738]
[1735543169655,0.28601664,699.26,698.02,1.06851593]
[1735543170953,0.28601664,699.26,698.04,1.06851593]
[1735543172154,0.28601664,699.26,698.19,1.06851593]
[1735543173155,0.28601664,699.26,697.95,1.06851593]
[1735543173351,0.28601664,699.26,697.95,1.3550694]
[1735543175253,0.28601664,699.26,697.95,0.28655347]
[1735543176457,0.28601664,699.26,698.13,1.06851593]
[1735543177658,0.28601664,699.26,698.12,1.06851593]
[1735543178963,0.28601664,699.26,698.07,1.06851593]
[1735543179966,0.28601664,699.26,698.02,1.06851593]
[1735543180965,0.28601664,699.26,698.01,1.06851593]
[1735543182062,0.28601664,699.26,698.0,1.06851593]
[1735543184067,0.28601664,699.26,697.99,1.06851593]
[1735543185070,0.28601664,699.26,698.0,1.06851593]
[1735543187270,0.28601664,699.26,698.03,1.06851593]
[1735543188466,0.28601664,699.26,698.07,1.06851593]
[1735543189666,0.28601664,699.26,698.12,1.06851593]
[1735543190873,0.28601664,699.26,697.95,0.28655347]
[1735543190874,0.26344592,699.25,698.16,1.06851593]
[1735543191172,0.28602482,699.24,698.16,1.06851593]
[1735543191372,0.26344592,699.23,698.16,1.06851593]
[1735543191572,0.286033,699.22,698.16,1.06851593]
[1735543191968,0.286033,699.22,698.24,1.06851593]
[1735543192874,0.286033,699.22,697.96,0.68342213]
[1735543192875,0.286033,699.22,698.25,1.06851593]
[1735543193976,0.286033,699.22,698.24,1.06851593]
[1735543195372,0.286033,699.22,697.95,1.3550694]
[1735543195373,0.286033,699.22,698.33,1.06851593]
[1735543197978,0.286033,699.22,698.34,1.06851593]
[1735543200681,0.286033,699.22,698.41,1.06851593]
[1735543201677,0.286033,699.22,698.37,1.06851593]
[1735543202678,0.286033,699.22,698.39,1.06851593]
[1735543204086,0.286033,699.22,698.32,1.06851593]
[1735543205482,0.286033,699.22,698.31,1.06851593]
[1735543206586,0.286033,699.22,697.96,0.68342213]
[1735543206587,0.286033,699.22,698.27,1.06851593]
[1735543207687,0.286033,699.22,698.3,1.06851593]
[1735543208689,0.286033,699.22,698.29,1.06851593]
[1735543209793,0.286033,699.22,698.3,1.06851593]
[1735543211091,0.286033,699.22,698.2,1.06851593]
[1735543211989,0.286033,699.22,698.19,1.06851593]
[1735543212893,0.286033,699.22,697.41,2.18155337]
[1735543212894,0.286033,699.22,698.17,1.06851593]
[1735543213786,0.286033,699.22,698.15,1.06851593]
[1735543215087,0.286033,699.22,698.06,1.06851593]
[1735543216188,0.286033,699.22,698.05,1.06851593]
[1735543217293,0.286033,699.22,697.73,1.06851593]
[1735543217294,0.286033,699.22,698.09,1.06851593]
[1735543219793,0.286033,699.22,697.24,2.18155337]
[1735543219794,0.286033,699.22,698.1,1.06851593]
[1735543223799,0.286033,699.22,695.47,2.89011145]
[1735543224000,0.286033,699.22,695.48,3.49714336]
[1735543224198,0.286033,699.22,695.49,6.0662034]
[1735543224396,0.286033,699.22,695.5,3.49714336]
[1735543224600,0.286033,699.22,695.51,6.0662034]
[1735543224903,0.286033,699.22,698.09,1.07194673]
[1735543230305,0.286033,699.22,698.12,1.07194673]
[1735543231303,0.286033,699.22,698.21,1.07194673]
[1735543232106,0.286033,699.22,698.1,1.07194673]
[1735543233106,0.286033,699.22,698.08,1.07194673]
[1735543234203,0.286033,699.22,698.07,1.07194673]
[1735543235504,0.286033,699.22,698.06,1.07194673]
[1735543236506,0.286033,699.22,698.05,1.07194673]
[1735543237510,0.286033,699.22,697.98,1.07194673]
[1735543239806,0.286033,699.22,697.96,1.07194673]
[1735543240909,0.286033,699.22,697.97,1.07194673]
[1735543241904,0.286033,699.22,697.96,1.07194673]
[1735543243211,0.286033,699.22,698.04,1.07194673]
[1735543244209,0.286033,699.22,698.05,1.07194673]
[1735543245015,0.286033,699.22,698.08,1.07194673]
[1735543246315,0.286033,699.22,698.07,1.07194673]
[1735543247516,0.286033,699.22,697.95,1.3585002]
[1735543248514,0.286033,699.22,697.95,0.28655347]
[1735543251513,0.286033,699.22,697.92,1.07194673]
[1735543251714,0.286033,699.22,697.89,1.07194673]
[1735543252715,0.286033,699.22,697.87,1.07194673]
[1735543254111,0.286033,699.22,697.88,1.07194673]
[1735543256119,0.286033,699.22,697.87,1.07194673]
[1735543257213,0.286033,699.22,697.97,1.07194673]
[1735543258017,0.286033,699.22,697.96,1.07194673]
[1735543259212,0.286033,699.22,697.97,1.07194673]
[1735543260317,0.26347967,699.21,697.97,1.07194673]
[1735543260512,0.28604118,699.2,697.97,1.07194673]
[1735543260717,0.26347967,699.19,697.97,1.07194673]
[1735543260919,0.28604937,699.18,697.97,1.07194673]
[1735543261320,0.26348031,699.17,698.04,1.07194673]
[1735543261511,0.28605755,699.16,698.04,1.07194673]
[1735543262614,0.28605755,699.16,698.05,1.07194673]
[1735543263918,0.28605755,699.16,698.06,1.07194673]
[1735543265116,0.28605755,699.16,697.44,2.18855791]
[1735543265117,0.28605755,699.16,698.09,1.07194673]
[1735543266222,0.28605755,699.16,697.88,1.07194673]
[1735543266223,0.28605755,699.16,698.06,1.07194673]
[1735543267318,0.28605755,699.16,698.08,1.07194673]
[1735543268419,0.28605755,699.16,698.07,1.07194673]
[1735543269522,0.28605755,699.16,698.08,1.07194673]
[1735543272023,0.28605755,699.16,698.12,1.07194673]
[1735543273128,0.28605755,699.16,697.92,1.07194673]
[1735543274428,0.28605755,699.16,697.87,1.07194673]
[1735543276929,0.28605755,699.16,697.84,1.07194673]
[1735543278234,0.28605755,699.16,697.85,1.07194673]
[1735543279629,0.28605755,699.16,697.84,1.07194673]
[1735543280634,0.28605755,699.16,697.83,1.07194673]
[1735543281636,0.28605755,699.16,697.82,1.07194673]
[1735543282537,0.26354901,699.15,697.82,1.07194673]
[1735543282733,1.06442986,699.11,697.86,1.07194673]
[1735543283037,0.2860821,699.1,697.86,1.07194673]
[1735543283938,1.35051196,699.1,697.84,1.07194673]
[1735543285139,1.35051196,699.1,697.8,1.07194673]
[1735543286338,0.2860821,699.1,697.78,1.07194673]
[1735543287531,0.2860821,699.1,697.0,2.18855791]
[1735543287532,0.2860821,699.1,697.75,1.07194673]
[1735543288832,0.2860821,699.1,697.77,1.07194673]
[1735543289835,0.2860821,699.1,697.75,1.07194673]
[1735543291243,0.2860821,699.1,697.76,1.07194673]
[1735543292247,0.2860821,699.1,697.67,1.07194673]
[1735543293643,0.2860821,699.1,697.69,1.07194673]
[1735543295146,0.2860821,699.1,697.72,1.07194673]
[1735543297246,0.2860821,699.1,696.9,1.28633607]
[1735543297247,0.2860821,699.1,697.78,1.07194673]
[1735543298253,0.2860821,699.1,698.14,1.07194673]
[1735543299251,0.2860821,699.1,698.12,1.07194673]
[1735543300352,0.2860821,699.1,698.04,1.07194673]
[1735543301347,0.2860821,699.1,697.84,1.07194673]
[1735543301348,0.26349464,699.09,698.06,1.07194673]
[1735543302251,0.28609029,699.08,698.04,1.07194673]
[1735543305253,0.28609029,699.08,698.07,1.07194673]
[1735543306255,0.28609029,699.08,697.94,1.07194673]
[1735543307451,0.28609029,699.08,697.97,1.07194673]
[1735543308753,0.28609029,699.08,697.95,1.07194673]
[1735543310849,0.28609029,699.08,697.42,0.68287015]
[1735543310850,0.28609029,699.08,697.9,1.07194673]
[1735543312256,0.28609029,699.08,697.87,1.07194673]
[1735543313056,0.28609029,699.08,697.86,1.07194673]
[1735543316658,0.28609029,699.08,697.87,1.07194673]
[1735543317859,0.28609029,699.08,697.89,1.07194673]
[1735543318964,0.28609029,699.08,697.88,1.07194673]
[1735543319763,0.28609029,699.08,697.87,1.07194673]
[1735543321361,0.28609029,699.08,697.88,1.07194673]
[1735543322463,0.28609029,699.08,697.76,1.07194673]
[1735543323366,0.28609029,699.08,697.82,1.07194673]
[1735543325167,0.28609029,699.08,697.81,1.07194673]
[1735543325968,0.28609029,699.08,697.86,1.07194673]
[1735543326967,0.28609029,699.08,697.94,1.07194673]
[1735543328073,0.28609029,699.08,697.92,1.07194673]
[1735543329172,0.28609029,699.08,697.95,1.07194673]
[1735543330073,0.28609029,699.08,697.94,1.07194673]
[1735543331275,0.28609029,699.08,697.56,1.07194673]
[1735543331276,0.28609029,699.08,698.06,1.07194673]
[1735543334777,0.28609029,699.08,698.07,1.07194673]
[1735543337079,0.28609029,699.08,697.93,1.07194673]
[1735543337983,0.28609029,699.08,698.02,1.07194673]
[1735543338975,0.28609029,699.08,698.0,1.07194673]
[1735543339782,0.28609029,699.08,697.68,1.07194673]
[1735543339783,0.28609029,699.08,698.01,1.07194673]
[1735543341082,0.28609029,699.08,697.99,1.07194673]
[1735543342584,0.28609029,699.08,698.06,1.07194673]
[1735543343487,0.28609029,699.08,698.0,1.07194673]
[1735543344582,0.28609029,699.08,697.97,1.07194673]
[1735543345586,0.28609029,699.08,697.96,1.07194673]
[1735543347188,0.28609029,699.08,697.64,1.07194673]
[1735543347189,0.28609029,699.08,697.95,1.07194673]
[1735543348088,0.28609029,699.08,697.97,1.07194673]
[1735543349890,0.28609029,699.08,697.98,1.07194673]
[1735543351890,0.28609029,699.08,697.54,0.68253476]
[1735543351891,0.28609029,699.08,698.02,1.07194673]
[1735543353085,0.28609029,699.08,698.05,1.07194673]
[1735543353990,0.28609029,699.08,697.7,1.85827752]
[1735543353991,0.28609029,699.08,698.1,1.07194673]
[1735543355295,0.28609029,699.08,698.02,1.07194673]
[1735543356490,0.28609029,699.08,697.98,1.07194673]
[1735543358997,0.28609029,699.08,697.97,1.07194673]
[1735543360202,0.28609029,699.08,697.96,1.07194673]
[1735543362504,0.28609029,699.08,697.97,1.07194673]
[1735543363701,0.28609029,699.08,697.98,1.07194673]
[1735543364607,0.28609029,699.08,697.94,1.07194673]
[1735543367703,0.28609029,699.08,697.6,0.68253476]
[1735543367704,0.28609029,699.08,697.85,1.07194673]
[1735543369208,0.28609029,699.08,697.83,1.07194673]
[1735543370212,0.28609029,699.08,697.78,1.07194673]
[1735543371207,0.28609029,699.08,697.79,1.07194673]
[1735543372511,0.28609029,699.08,697.78,1.07194673]
[1735543374414,0.28609029,699.08,697.46,1.07194673]
[1735543374415,0.28609029,699.08,697.79,1.07194673]
[1735543375810,0.28609029,699.08,697.78,1.07194673]
[1735543377111,0.28609029,699.08,697.37,1.07194673]
[1735543378107,0.28609029,699.08,697.33,1.07194673]
[1735543379213,0.28609029,699.08,697.39,1.07194673]
[1735543380117,0.28609029,699.08,697.38,1.07194673]
[1735543381210,0.28609029,699.08,697.39,1.07194673]
[1735543382415,0.28609029,699.08,697.37,1.07194673]
[1735543383211,0.28609029,699.08,697.38,1.07194673]
[1735543385117,0.28609029,699.08,697.43,1.07194673]
[1735543385914,0.28609029,699.08,697.76,1.07194673]
[1735543387119,0.28609029,699.08,697.81,1.07194673]
[1735543388213,0.28609029,699.08,697.82,1.07194673]
[1735543388419,0.26352746,699.07,697.82,1.07194673]
[1735543388619,0.28609847,699.06,697.82,1.07194673]
[1735543388919,0.26352746,699.05,697.82,1.07194673]
[1735543389112,0.28610666,699.04,697.82,1.07194673]
[1735543389313,0.28610666,699.04,697.88,1.07194673]
[1735543390425,0.28610666,699.04,697.89,1.07194673]
[1735543391616,0.28610666,699.04,697.86,1.07194673]
[1735543392625,0.28610666,699.04,697.81,1.07194673]
[1735543395029,0.28610666,699.04,697.74,1.07194673]
[1735543397127,0.28610666,699.04,697.75,1.07194673]
[1735543399331,0.28610666,699.04,697.76,1.07194673]
[1735543400529,0.28610666,699.04,697.77,1.07194673]
[1735543401627,0.28610666,699.04,697.75,1.07194673]
[1735543402833,0.28610666,699.04,697.82,1.07194673]
[1735543403830,0.28610666,699.04,697.83,1.07194673]
[1735543405038,0.28610666,699.04,697.99,1.07194673]
[1735543406036,0.28610666,699.04,698.05,1.07194673]
[1735543406839,0.28610666,699.04,698.04,1.07194673]
[1735543409032,0.28610666,699.04,698.05,1.07194673]
[1735543412839,0.26352187,699.03,698.05,1.07194673]
[1735543413033,0.28611484,699.02,698.05,1.07194673]
[1735543413841,0.28611484,699.02,698.03,1.07194673]
[1735543414842,0.28611484,699.02,698.04,1.07194673]
[1735543415343,0.26352727,699.01,698.04,1.07194673]
[1735543415540,0.28611484,699.02,698.04,1.07194673]
[1735543415541,0.28612303,699.0,698.04,1.07194673]
[1735543415943,1.35055289,699.0,698.02,1.07194673]
[1735543417042,1.35055289,699.0,697.82,1.07194673]
[1735543417043,0.28612303,699.0,698.0,1.07194673]
[1735543417846,0.28612303,699.0,698.01,1.07194673]
[1735543419250,0.28612303,699.0,697.58,0.68399267]
[1735543419251,0.28612303,699.0,697.98,1.07194673]
[1735543420247,0.28612303,699.0,697.93,1.07194673]
[1735543422551,0.28612303,699.0,697.96,1.07194673]
[1735543424448,0.28612303,699.0,697.97,1.07194673]
[1735543426053,0.28612303,699.0,697.96,1.07194673]
[1735543427047,0.28612303,699.0,697.94,1.07194673]
[1735543427753,0.28612303,699.0,697.97,1.07194673]
[1735543429955,0.28612303,699.0,697.98,1.07194673]
[1735543430954,0.28612303,699.0,697.96,1.07194673]
[1735543433154,0.28612303,699.0,697.95,1.07194673]
[1735543433954,0.28612303,699.0,697.94,1.07194673]
[1735543435057,1.35055289,699.0,697.99,1.07194673]
[1735543435954,1.06442986,698.99,697.98,1.07194673]
[1735543437163,1.06442986,698.98,697.97,1.07194673]
[1735543437564,0.26355985,698.97,697.97,1.07194673]
[1735543438459,0.26355985,698.97,697.75,1.07194673]
[1735543438460,1.06442986,698.92,697.88,1.07194673]
[1735543438859,0.28615987,698.91,697.88,1.07194673]
[1735543439662,1.35058973,698.91,697.84,1.07194673]
[1735543440967,0.28615987,698.91,697.67,1.07194673]
[1735543442267,0.28615987,698.91,697.6,1.07194673]
[1735543443467,0.28615987,698.91,697.54,1.07194673]
[1735543444564,0.28615987,698.91,696.74,2.18855791]
[1735543444565,0.28615987,698.91,697.52,1.07194673]
[1735543445567,0.28615987,698.91,697.46,1.07194673]
[1735543446863,0.28615987,698.91,696.79,1.28633607]
[1735543446864,0.28615987,698.91,697.44,1.07194673]
[1735543447963,0.28615987,698.91,697.37,1.07194673]
[1735543448466,0.28615987,698.91,697.41,1.07194673]
[1735543448969,0.26363485,698.9,697.41,1.07194673]
[1735543449669,0.26363485,698.9,696.63,2.18855791]
[1735543449670,0.28615987,698.91,697.36,1.07194673]
[1735543450365,0.28615987,698.91,697.35,1.07194673]
[1735543451669,0.26360342,698.9,697.33,1.07194673]
[1735543452874,0.26360342,698.9,690.74,8.57241887]
[1735543452875,0.26360342,698.9,697.51,1.07194673]
[1735543454465,0.26360342,698.9,697.63,1.07194673]
[1735543454666,0.28616806,698.89,697.63,1.07194673]
[1735543454865,0.26360342,698.88,697.63,1.07194673]
[1735543455771,0.26360342,698.88,697.64,1.07194673]
[1735543456667,0.28616806,698.89,697.64,1.07194673]
[1735543456869,0.26357829,698.88,697.64,1.07194673]
[1735543457069,0.28617625,698.87,697.64,1.07194673]
[1735543457271,0.28617625,698.87,697.65,1.07194673]
[1735543457272,0.26357829,698.86,697.65,1.07194673]
[1735543459083,0.28618444,698.85,697.66,1.07194673]
[1735543459269,0.26357829,698.84,697.66,1.07194673]
[1735543460072,0.28618444,698.85,697.66,1.07194673]
[1735543460272,0.28618444,698.85,697.57,0.28670957]
[1735543460273,0.28618444,698.85,697.64,1.07194673]
[1735543461574,0.28618444,698.85,697.57,0.28670957]
[1735543470584,0.28618444,698.85,697.58,1.07194673]
[1735543471683,0.28618444,698.85,697.68,1.07194673]
[1735543472588,0.28618444,698.85,697.69,1.07194673]
[1735543473481,0.28618444,698.85,697.7,1.07194673]
[1735543475592,0.28618444,698.85,697.71,1.07194673]
[1735543476984,0.28618444,698.85,697.57,0.28670957]
[1735543476985,0.28618444,698.85,697.72,1.07194673]
[1735543478189,0.28618444,698.85,697.78,1.07194673]
[1735543480095,0.28618444,698.85,697.79,1.07194673]
[1735543482196,0.28618444,698.85,697.8,1.07194673]
[1735543485491,0.28618444,698.85,697.82,1.07194673]
[1735543486596,1.3506143,698.85,697.77,1.07194673]
[1735543487995,1.06442986,698.81,697.7,1.07194673]
[1735543488896,0.28620492,698.8,697.7,1.07194673]
[1735543489294,0.28620492,698.8,697.64,1.07194673]
[1735543489696,0.26365593,698.79,697.64,1.07194673]
[1735543489897,0.28621721,698.77,697.64,1.07194673]
[1735543490699,1.06442986,698.74,697.61,1.07194673]
[1735543490893,0.5498918,698.73,697.61,1.07194673]
[1735543491099,0.28623359,698.73,697.61,1.07194673]
[1735543491397,0.28624178,698.71,697.61,1.07194673]
[1735543491799,0.28624178,698.71,697.55,1.07194673]
[1735543492997,0.28624178,698.71,697.52,1.07194673]
[1735543493802,0.28624178,698.71,697.46,1.07194673]
[1735543495105,0.28624178,698.71,697.41,1.07194673]
[1735543495300,0.26367881,698.7,697.41,1.07194673]
[1735543495502,0.26368749,698.69,697.41,1.07194673]
[1735543495801,0.26368749,698.68,697.41,1.07194673]
[1735543496003,0.26368749,698.67,697.4,1.07194673]
[1735543496303,0.28624178,698.71,697.4,1.07194673]
[1735543496497,0.26369293,698.7,697.4,1.07194673]
[1735543496700,0.28625407,698.68,697.4,1.07194673]
[1735543496902,0.26371017,698.67,697.4,1.07194673]
[1735543497205,0.26371017,698.67,697.34,1.07194673]
[1735543497405,0.28626637,698.65,697.34,1.07194673]
[1735543497899,0.26371291,698.64,697.34,1.07194673]
[1735543498102,0.26371314,698.63,697.34,1.07194673]
[1735543498304,0.28627866,698.62,697.28,1.07194673]
[1735543499501,0.28627866,698.62,697.26,1.07194673]
[1735543500604,0.28627866,698.62,697.24,1.07194673]
[1735543501605,0.28627866,698.62,697.23,1.07194673]
[1735543502505,0.26367882,698.61,697.23,1.07194673]
[1735543502701,0.28627866,698.62,697.23,1.07194673]
[1735543502907,0.26366059,698.61,697.23,1.07194673]
[1735543503306,0.28628685,698.6,697.23,1.07194673]
[1735543503808,0.28628685,698.6,697.46,1.07194673]
[1735543504909,0.28628685,698.6,697.48,1.07194673]
[1735543506109,0.28628685,698.6,697.46,1.07194673]
[1735543507404,0.28628685,698.6,697.39,1.07194673]
[1735543509814,0.28628685,698.6,697.41,1.07194673]
[1735543510909,0.28628685,698.6,697.22,1.07194673]
[1735543512008,0.28628685,698.6,697.25,1.07194673]
[1735543513214,0.28628685,698.6,697.41,1.07194673]
[1735543514307,0.28628685,698.6,697.12,1.85657045]
[1735543514308,0.28628685,698.6,697.47,1.07194673]
[1735543515407,0.28628685,698.6,697.45,1.07194673]
[1735543516216,0.28628685,698.6,697.57,1.07194673]
[1735543517215,0.28628685,698.6,697.55,1.07194673]
[1735543518417,0.28628685,698.6,697.17,1.85644162]
[1735543518418,0.28628685,698.6,697.58,1.07194673]
[1735543519420,0.28628685,698.6,697.6,1.07194673]
[1735543520818,0.28628685,698.6,697.62,1.07194673]
[1735543521413,0.28628685,698.6,697.63,1.07194673]
[1735543524820,0.28628685,698.6,697.65,1.07194673]
[1735543525615,0.28628685,698.6,697.64,1.07194673]
[1735543526616,0.28628685,698.6,697.69,1.07194673]
[1735543528017,0.28628685,698.6,693.53,3.27501334]
[1735543528018,0.28628685,698.6,697.72,1.07194673]
[1735543529319,0.28628685,698.6,697.42,1.85649193]
[1735543529320,0.28628685,698.6,697.68,1.07194673]
[1735543530623,0.28628685,698.6,697.67,1.07194673]
[1735543531720,0.28628685,698.6,697.6,1.07194673]
[1735543532825,0.28628685,698.6,697.55,1.07194673]
[1735543534120,0.28628685,698.6,697.52,1.07194673]
[1735543535427,0.28628685,698.6,697.46,1.07194673]
[1735543536425,0.28628685,698.6,697.44,1.07194673]
[1735543537426,0.28628685,698.6,697.51,1.07194673]
[1735543538524,0.28628685,698.6,689.64,8.56964764]
[1735543538525,0.28628685,698.6,697.5,1.07194673]
[1735543540826,0.28628685,698.6,697.46,1.07194673]
[1735543542028,0.28628685,698.6,697.07,1.07194673]
[1735543542029,0.28628685,698.6,697.35,1.07194673]
[1735543543628,0.28628685,698.6,697.36,1.07194673]
[1735543544032,0.26370769,698.59,697.36,1.07194673]
[1735543544228,0.28629505,698.58,697.36,1.07194673]
[1735543545030,0.26371241,698.57,697.36,1.07194673]
[1735543545732,0.54029856,698.56,697.36,1.07194673]
[1735543545936,0.55002768,698.55,697.36,1.07194673]
[1735543546137,0.28631144,698.54,697.36,1.07194673]
[1735543546338,0.28631144,698.54,697.32,1.07194673]
[1735543547134,0.28631144,698.54,697.27,1.07194673]
[1735543548139,0.28631144,698.54,697.26,1.07194673]
[1735543549133,0.28631144,698.54,697.25,1.07194673]
[1735543550440,0.28631144,698.54,697.24,1.07194673]
[1735543551638,0.28631144,698.54,697.23,1.07194673]
[1735543552747,0.28631144,698.54,697.22,1.07194673]
[1735543554144,0.28631144,698.54,697.2,1.07194673]
[1735543556445,0.28631144,698.54,696.95,1.35891136]
[1735543556446,0.26371973,698.53,697.22,1.07194673]
[1735543556647,0.26371955,698.52,697.22,1.07194673]
[1735543556846,0.55004329,698.51,697.22,1.07194673]
[1735543557041,0.26371955,698.5,697.22,1.07194673]
[1735543557248,0.28632374,698.51,697.29,1.07194673]
[1735543558747,0.28632374,698.51,697.16,1.07194673]
[1735543560048,0.28632374,698.51,697.06,1.07194673]
[1735543561049,0.28632374,698.51,697.0,1.07194673]
[1735543562050,0.28632374,698.51,697.01,1.07194673]
[1735543564552,0.28632374,698.51,696.99,1.07194673]
[1735543565852,0.28632374,698.51,697.03,1.07194673]
[1735543567049,0.28632374,698.51,697.02,1.07194673]
[1735543568153,0.28632374,698.51,696.17,2.18855791]
[1735543568154,0.28632374,698.51,697.09,1.07194673]
[1735543569453,0.28632374,698.51,697.21,1.07194673]
[1735543570852,0.28632374,698.51,697.34,1.07194673]
[1735543571653,0.28632374,698.51,696.96,0.68254799]
[1735543571654,0.28632374,698.51,697.31,1.07194673]
[1735543572850,0.28632374,698.51,697.3,1.07194673]
[1735543573853,0.28632374,698.51,697.33,1.07194673]
[1735543575158,0.28632374,698.51,697.32,1.07194673]
[1735543576058,0.26376308,698.5,697.32,1.07194673]
[1735543576262,0.26376048,698.49,697.32,1.07194673]
[1735543576459,0.28634014,698.47,697.31,1.07194673]
[1735543577358,0.28634014,698.47,697.23,1.07194673]
[1735543577359,0.26377014,698.46,697.23,1.07194673]
[1735543577556,0.28635244,698.44,697.23,1.07194673]
[1735543577753,0.26377014,698.43,697.23,1.07194673]
[1735543577957,0.28636474,698.41,697.23,1.07194673]
[1735543578160,0.26377014,698.4,697.23,1.07194673]
[1735543578357,0.28637704,698.38,697.23,1.07194673]
[1735543578553,0.26377014,698.37,697.23,1.07194673]
[1735543578753,0.28638934,698.35,697.23,1.07194673]
[1735543578956,0.26377014,698.34,697.22,1.07194673]
[1735543579157,1.06442986,698.33,697.22,1.07194673]
[1735543579357,0.55017178,698.32,697.22,1.07194673]
[1735543579559,0.55017589,698.31,697.22,1.07194673]
[1735543579761,0.55017999,698.3,697.22,1.07194673]
[1735543579955,0.55018409,698.29,697.22,1.07194673]
[1735543580156,0.55018819,698.28,697.22,1.07194673]
[1735543580356,0.55019229,698.27,697.22,1.07194673]
[1735543580662,0.55019639,698.26,697.18,1.07194673]
[1735543580861,0.5502005,698.25,697.18,1.07194673]
[1735543581064,0.5502046,698.24,697.18,1.07194673]
[1735543581361,0.26381245,698.23,697.18,1.07194673]
[1735543581659,0.28643446,698.24,697.18,1.07194673]
[1735543581861,0.28643446,698.24,696.98,1.07194673]
[1735543581862,0.28643446,698.24,697.17,1.07194673]
[1735543583265,0.28643446,698.24,697.1,1.07194673]
[1735543584155,0.28643446,698.24,697.09,1.07194673]
[1735543586355,0.28643446,698.24,697.08,1.07194673]
[1735543586759,0.28643446,698.24,697.08,1.06617479]
[1735543587564,0.28643446,698.24,696.95,0.28696463]
[1735543615175,0.28643446,698.24,696.68,1.07194673]
[1735543615774,0.28643446,698.24,696.69,0.28707172]
[1735543639896,0.26385235,698.23,696.69,0.28707172]
[1735543642093,0.26390162,698.22,696.69,0.28707172]
[1735543642295,0.26390162,698.21,696.69,0.28707172]
[1735543642496,0.26390162,698.2,696.69,0.28707172]
[1735543642699,0.26390162,698.19,696.69,0.28707172]
[1735543642896,0.26390162,698.18,696.69,0.28707172]